[Event "Early-Titled-Tuesday-Blitz-June-18-2024"]
[Site "Chess.com"]
[Date "2024.06.18"]
[Round "4"]
[White "bazar-wokzal"]
[Black "Defenstrator"]
[Result "1-0"]
[WhiteElo "2591"]
[BlackElo "2391"]
[TimeControl "180+1"]
[EndTime "8:40:27 PDT"]
[Termination "bazar-wokzal won by resignation"]

1. e4 {[%clk 0:03:00.9]} 1... d6 {[%clk 0:02:45.6]} 2. f4 {[%clk 0:03:00]} 2...
e5 {[%clk 0:02:44.4]} 3. Bc4 {[%clk 0:02:57.5]} 3... exf4 {[%clk 0:02:40.9]} 4.
d4 {[%clk 0:02:56.7]} 4... g5 {[%clk 0:02:33.9]} 5. h4 {[%clk 0:02:55.2]} 5...
Bg7 {[%clk 0:02:19.5]} 6. hxg5 {[%clk 0:02:51.6]} 6... Qxg5 {[%clk 0:02:18.6]}
7. Nf3 {[%clk 0:02:49.3]} 7... Qg3+ {[%clk 0:02:13.2]} 8. Kf1 {[%clk 0:02:48.9]}
8... Bg4 {[%clk 0:02:04.9]} 9. Nc3 {[%clk 0:02:35.8]} 9... Nc6 {[%clk
0:01:54.7]} 10. Nd5 {[%clk 0:02:31.2]} 10... Bxf3 {[%clk 0:01:45.5]} 11. gxf3
{[%clk 0:02:28.5]} 11... Bxd4 {[%clk 0:01:34.1]} 12. Qe2 {[%clk 0:02:19.8]}
12... O-O-O {[%clk 0:01:27]} 13. Bxf4 {[%clk 0:02:19.1]} 13... Qg7 {[%clk
0:01:14.5]} 14. c3 {[%clk 0:02:18.7]} 14... Be5 {[%clk 0:01:13.3]} 15. Rg1
{[%clk 0:02:16.1]} 15... Qf8 {[%clk 0:01:08.7]} 16. Bg5 {[%clk 0:02:13.4]} 16...
Re8 {[%clk 0:01:02.7]} 17. f4 {[%clk 0:01:52.9]} 17... Bg7 {[%clk 0:00:57.5]}
18. Qg4+ {[%clk 0:01:49.8]} 18... f5 {[%clk 0:00:55.7]} 19. Qxf5+ {[%clk
0:01:44.9]} 19... Qxf5 {[%clk 0:00:55.8]} 20. exf5 {[%clk 0:01:45.2]} 20... Nh6
{[%clk 0:00:35]} 21. f6 {[%clk 0:01:40.4]} 21... Bf8 {[%clk 0:00:33.3]} 22. Bd3
{[%clk 0:01:21]} 22... Nf7 {[%clk 0:00:27.6]} 23. Bf5+ {[%clk 0:01:09.8]} 23...
Kb8 {[%clk 0:00:28]} 24. Re1 {[%clk 0:01:06.6]} 24... Bh6 {[%clk 0:00:28.5]} 25.
Rxe8+ {[%clk 0:01:02.2]} 25... Rxe8 {[%clk 0:00:29]} 26. Bxh7 {[%clk 0:01:02.2]}
26... Ncd8 {[%clk 0:00:14.9]} 27. Ne7 {[%clk 0:00:56.1]} 27... Nc6 {[%clk
0:00:12.9]} 28. Bg6 {[%clk 0:00:53]} 28... Rf8 {[%clk 0:00:11.7]} 29. Bxf7
{[%clk 0:00:49.7]} 29... Bxg5 {[%clk 0:00:11.3]} 30. Nxc6+ {[%clk 0:00:47.2]}
30... bxc6 {[%clk 0:00:11.7]} 31. fxg5 {[%clk 0:00:47.3]} 31... Rxf7 {[%clk
0:00:12.5]} 32. Ke2 {[%clk 0:00:46.8]} 1-0

[Event "Early-Titled-Tuesday-Blitz-June-18-2024"]
[Site "Chess.com"]
[Date "2024.06.18"]
[Round "4"]
[White "AGW2016"]
[Black "CSB7"]
[Result "0-1"]
[WhiteElo "2543"]
[BlackElo "2740"]
[TimeControl "180+1"]
[EndTime "8:40:29 PDT"]
[Termination "CSB7 won by resignation"]

1. d4 {[%clk 0:03:00.9]} 1... d5 {[%clk 0:02:57.5]} 2. Nf3 {[%clk 0:03:01.1]}
2... Nf6 {[%clk 0:02:57.1]} 3. Bf4 {[%clk 0:02:59.9]} 3... c5 {[%clk 0:02:47.6]}
4. e3 {[%clk 0:02:59.3]} 4... Nc6 {[%clk 0:02:47.5]} 5. c3 {[%clk 0:02:56.2]}
5... Qb6 {[%clk 0:02:42.6]} 6. Qb3 {[%clk 0:02:37.7]} 6... c4 {[%clk 0:02:42.2]}
7. Qc2 {[%clk 0:02:38]} 7... Bf5 {[%clk 0:02:41.5]} 8. Qc1 {[%clk 0:02:38.7]}
8... e6 {[%clk 0:02:41]} 9. Nbd2 {[%clk 0:02:39.3]} 9... h6 {[%clk 0:02:35.8]}
10. Be2 {[%clk 0:02:38.6]} 10... Be7 {[%clk 0:02:34.8]} 11. O-O {[%clk
0:02:39.2]} 11... Qd8 {[%clk 0:02:34.4]} 12. b3 {[%clk 0:02:39.5]} 12... b5
{[%clk 0:02:33.2]} 13. a4 {[%clk 0:02:39.9]} 13... a6 {[%clk 0:02:28.3]} 14. Ne5
{[%clk 0:02:38.2]} 14... Nxe5 {[%clk 0:02:21.6]} 15. Bxe5 {[%clk 0:02:38.8]}
15... O-O {[%clk 0:02:20.3]} 16. h3 {[%clk 0:02:33.2]} 16... Qd7 {[%clk
0:02:00.6]} 17. b4 {[%clk 0:02:19.6]} 17... a5 {[%clk 0:01:40.8]} 18. bxa5
{[%clk 0:02:01.9]} 18... bxa4 {[%clk 0:01:30.4]} 19. Bxf6 {[%clk 0:01:15.1]}
19... Bxf6 {[%clk 0:01:29.9]} 20. e4 {[%clk 0:01:15.7]} 20... Bh7 {[%clk
0:01:21.9]} 21. Qc2 {[%clk 0:00:54.5]} 21... Rxa5 {[%clk 0:01:21]} 22. Rfb1
{[%clk 0:00:54.5]} 22... Rfa8 {[%clk 0:01:14.8]} 23. Bxc4 {[%clk 0:00:54]} 23...
dxc4 {[%clk 0:00:45.8]} 24. Nxc4 {[%clk 0:00:54.9]} 24... Rg5 {[%clk 0:00:46]}
25. Nb6 {[%clk 0:00:54.3]} 25... Qc6 {[%clk 0:00:43.2]} 26. Nxa8 {[%clk
0:00:16.1]} 26... Bxe4 {[%clk 0:00:38.3]} 27. Rb8+ {[%clk 0:00:16.7]} 27... Kh7
{[%clk 0:00:38.2]} 28. Qe2 {[%clk 0:00:16.8]} 28... Rxg2+ {[%clk 0:00:30.6]} 29.
Kf1 {[%clk 0:00:17.1]} 29... Rh2 {[%clk 0:00:27]} 0-1

[Event "Early-Titled-Tuesday-Blitz-June-18-2024"]
[Site "Chess.com"]
[Date "2024.06.18"]
[Round "4"]
[White "Barmen_EV"]
[Black "salomez"]
[Result "1-0"]
[WhiteElo "2539"]
[BlackElo "2359"]
[TimeControl "180+1"]
[EndTime "8:40:29 PDT"]
[Termination "Barmen_EV won by checkmate"]

1. e4 {[%clk 0:03:00.1]} 1... c5 {[%clk 0:02:59.9]} 2. c3 {[%clk 0:02:59.5]}
2... Nf6 {[%clk 0:02:58.4]} 3. e5 {[%clk 0:02:59.6]} 3... Nd5 {[%clk 0:02:58.7]}
4. d4 {[%clk 0:03:00.5]} 4... cxd4 {[%clk 0:02:59.6]} 5. Nf3 {[%clk 0:03:01.4]}
5... d6 {[%clk 0:02:59.6]} 6. cxd4 {[%clk 0:03:01.1]} 6... Nc6 {[%clk
0:02:59.4]} 7. Bc4 {[%clk 0:03:01.7]} 7... Nb6 {[%clk 0:02:59.5]} 8. Bxf7+
{[%clk 0:03:02.6]} 8... Kxf7 {[%clk 0:02:58.1]} 9. e6+ {[%clk 0:03:03.5]} 9...
Kxe6 {[%clk 0:02:48.1]} 10. Ng5+ {[%clk 0:03:02.8]} 10... Kd7 {[%clk 0:02:47.3]}
11. Nf7 {[%clk 0:03:02.5]} 11... Qe8 {[%clk 0:02:46.3]} 12. Nxh8 {[%clk
0:02:59.7]} 12... e6 {[%clk 0:02:23.2]} 13. O-O {[%clk 0:02:54.5]} 13... Be7
{[%clk 0:02:22.9]} 14. a4 {[%clk 0:02:52.9]} 14... Qxh8 {[%clk 0:02:22]} 15. a5
{[%clk 0:02:53.2]} 15... Nd5 {[%clk 0:02:22]} 16. Nc3 {[%clk 0:02:50.9]} 16...
Nxc3 {[%clk 0:02:21.1]} 17. bxc3 {[%clk 0:02:50.6]} 17... Qd8 {[%clk 0:01:48.4]}
18. c4 {[%clk 0:02:50]} 18... Bf6 {[%clk 0:01:31.1]} 19. Be3 {[%clk 0:02:44.9]}
19... Ke7 {[%clk 0:01:28.4]} 20. d5 {[%clk 0:02:40.4]} 20... Ne5 {[%clk
0:01:16.3]} 21. c5 {[%clk 0:02:38.3]} 21... dxc5 {[%clk 0:01:11.5]} 22. Bxc5+
{[%clk 0:02:39.2]} 22... Kf7 {[%clk 0:01:11.7]} 23. Qh5+ {[%clk 0:02:23.1]}
23... Kg8 {[%clk 0:01:05.6]} 24. Rad1 {[%clk 0:02:22.6]} 24... exd5 {[%clk
0:01:02]} 25. Rxd5 {[%clk 0:02:23.5]} 25... Bd7 {[%clk 0:00:33.7]} 26. Rxe5
{[%clk 0:02:20]} 26... Bxe5 {[%clk 0:00:32.9]} 27. Qxe5 {[%clk 0:02:20.9]} 27...
Bc6 {[%clk 0:00:23.9]} 28. Bd4 {[%clk 0:01:53.4]} 28... Qf8 {[%clk 0:00:23.7]}
29. h4 {[%clk 0:01:37.1]} 29... a6 {[%clk 0:00:19.2]} 30. h5 {[%clk 0:01:35.4]}
30... h6 {[%clk 0:00:18.7]} 31. Qe6+ {[%clk 0:01:30.6]} 31... Qf7 {[%clk
0:00:17.9]} 32. Qg4 {[%clk 0:01:29.6]} 32... Rd8 {[%clk 0:00:14.8]} 33. Re1
{[%clk 0:01:19.7]} 33... Rd7 {[%clk 0:00:14.7]} 34. Bxg7 {[%clk 0:01:01.4]}
34... Qxg7 {[%clk 0:00:13.9]} 35. Re8+ {[%clk 0:01:01.9]} 35... Kf7 {[%clk
0:00:09.8]} 36. Qe6# {[%clk 0:01:01.8]} 1-0

[Event "Early-Titled-Tuesday-Blitz-June-18-2024"]
[Site "Chess.com"]
[Date "2024.06.18"]
[Round "4"]
[White "Kostukov_Alex"]
[Black "Sic_Transit_GM"]
[Result "0-1"]
[WhiteElo "2314"]
[BlackElo "2588"]
[TimeControl "180+1"]
[EndTime "8:40:32 PDT"]
[Termination "Sic_Transit_GM won on time"]

1. g3 {[%clk 0:03:00.9]} 1... d5 {[%clk 0:03:00.1]} 2. Bg2 {[%clk 0:03:00.4]}
2... Nf6 {[%clk 0:03:00.5]} 3. d3 {[%clk 0:03:00.3]} 3... Bg4 {[%clk 0:02:58.2]}
4. c4 {[%clk 0:02:55.9]} 4... c6 {[%clk 0:02:56.3]} 5. Qb3 {[%clk 0:02:52.5]}
5... Qb6 {[%clk 0:02:54.4]} 6. Nc3 {[%clk 0:02:49.4]} 6... e6 {[%clk 0:02:52.5]}
7. Be3 {[%clk 0:02:39.2]} 7... Qc7 {[%clk 0:02:49.3]} 8. Bf4 {[%clk 0:02:29.8]}
8... Qb6 {[%clk 0:02:48.1]} 9. Nf3 {[%clk 0:02:23.3]} 9... Nbd7 {[%clk
0:02:47.6]} 10. Qxb6 {[%clk 0:02:10.3]} 10... axb6 {[%clk 0:02:48.5]} 11. cxd5
{[%clk 0:02:09.1]} 11... exd5 {[%clk 0:02:46.9]} 12. O-O {[%clk 0:02:02.2]}
12... Bb4 {[%clk 0:02:41.3]} 13. h3 {[%clk 0:01:58.3]} 13... Bh5 {[%clk
0:02:39.4]} 14. g4 {[%clk 0:01:57.7]} 14... Bg6 {[%clk 0:02:39.4]} 15. Ne5
{[%clk 0:01:56.7]} 15... O-O {[%clk 0:02:36.2]} 16. Nxd7 {[%clk 0:01:49.4]}
16... Nxd7 {[%clk 0:02:37.1]} 17. Rfc1 {[%clk 0:01:45.4]} 17... Rfe8 {[%clk
0:02:36.6]} 18. Kf1 {[%clk 0:01:43.7]} 18... Nc5 {[%clk 0:02:28.8]} 19. Be3
{[%clk 0:01:22.1]} 19... Nd7 {[%clk 0:02:26.4]} 20. Bf4 {[%clk 0:01:21.2]} 20...
Nc5 {[%clk 0:02:21.4]} 21. Be3 {[%clk 0:01:20.5]} 21... Rad8 {[%clk 0:02:12.4]}
22. d4 {[%clk 0:01:09.8]} 22... Ne6 {[%clk 0:02:06.2]} 23. a3 {[%clk 0:01:01]}
23... Bd6 {[%clk 0:02:04.2]} 24. a4 {[%clk 0:00:57.1]} 24... h5 {[%clk
0:01:54.7]} 25. a5 {[%clk 0:00:54.8]} 25... bxa5 {[%clk 0:01:52.8]} 26. Rxa5
{[%clk 0:00:53.8]} 26... hxg4 {[%clk 0:01:53]} 27. hxg4 {[%clk 0:00:53.2]} 27...
Nf4 {[%clk 0:01:41.7]} 28. Bxf4 {[%clk 0:00:49.1]} 28... Bxf4 {[%clk 0:01:42.6]}
29. e3 {[%clk 0:00:49.5]} 29... Bd6 {[%clk 0:01:37.7]} 30. Ra7 {[%clk
0:00:48.3]} 30... Rb8 {[%clk 0:01:35.4]} 31. Na4 {[%clk 0:00:45.2]} 31... Bd3+
{[%clk 0:01:33.1]} 32. Kg1 {[%clk 0:00:41.1]} 32... Ra8 {[%clk 0:01:30.4]} 33.
Rxa8 {[%clk 0:00:34]} 33... Rxa8 {[%clk 0:01:31.3]} 34. Nc5 {[%clk 0:00:28.3]}
34... Bxc5 {[%clk 0:01:24.2]} 35. dxc5 {[%clk 0:00:19]} 35... Ra2 {[%clk
0:01:23.5]} 36. Rc3 {[%clk 0:00:15.4]} 36... Bc4 {[%clk 0:01:19.6]} 37. Ra3
{[%clk 0:00:03.2]} 37... Rxb2 {[%clk 0:01:16.5]} 38. Ra8+ {[%clk 0:00:03.5]}
38... Kh7 {[%clk 0:01:15.7]} 39. Rb8 {[%clk 0:00:01.7]} 39... Ba6 {[%clk
0:01:06.3]} 0-1

[Event "Early-Titled-Tuesday-Blitz-June-18-2024"]
[Site "Chess.com"]
[Date "2024.06.18"]
[Round "4"]
[White "MasterKroket"]
[Black "PeshkaCh"]
[Result "0-1"]
[WhiteElo "2544"]
[BlackElo "2859"]
[TimeControl "180+1"]
[EndTime "8:40:33 PDT"]
[Termination "PeshkaCh won by resignation"]

1. e4 {[%clk 0:03:00.9]} 1... e5 {[%clk 0:03:00.5]} 2. Nf3 {[%clk 0:03:00.8]}
2... Nc6 {[%clk 0:03:01.2]} 3. Bb5 {[%clk 0:03:01.1]} 3... a6 {[%clk 0:03:01.9]}
4. Ba4 {[%clk 0:03:01.4]} 4... Nge7 {[%clk 0:03:02.6]} 5. O-O {[%clk 0:03:01.1]}
5... Ng6 {[%clk 0:03:03]} 6. Re1 {[%clk 0:03:00.4]} 6... Bc5 {[%clk 0:03:01.2]}
7. c3 {[%clk 0:03:00.2]} 7... d6 {[%clk 0:02:55.1]} 8. h3 {[%clk 0:03:00.1]}
8... O-O {[%clk 0:02:54.9]} 9. d4 {[%clk 0:03:00.3]} 9... exd4 {[%clk
0:02:52.2]} 10. cxd4 {[%clk 0:03:00]} 10... Ba7 {[%clk 0:02:52.4]} 11. Nc3
{[%clk 0:02:59.4]} 11... b5 {[%clk 0:02:51.7]} 12. Bc2 {[%clk 0:02:58.4]} 12...
Nb4 {[%clk 0:02:51.7]} 13. Bb1 {[%clk 0:02:58.2]} 13... Kh8 {[%clk 0:02:34.4]}
14. d5 {[%clk 0:02:55.5]} 14... a5 {[%clk 0:02:01.6]} 15. Nxb5 {[%clk
0:02:55.1]} 15... Bb6 {[%clk 0:02:00.8]} 16. Nbd4 {[%clk 0:02:51.3]} 16... h6
{[%clk 0:01:55]} 17. Bd2 {[%clk 0:02:24.7]} 17... Qf6 {[%clk 0:01:50.1]} 18. Bc3
{[%clk 0:02:24.7]} 18... Ne5 {[%clk 0:00:56.3]} 19. Nxe5 {[%clk 0:02:16.5]}
19... dxe5 {[%clk 0:00:57.2]} 20. Nf3 {[%clk 0:02:16.5]} 20... Re8 {[%clk
0:00:57.5]} 21. a3 {[%clk 0:02:05.7]} 21... Na6 {[%clk 0:00:56.8]} 22. Bd3
{[%clk 0:02:06.3]} 22... Nc5 {[%clk 0:00:52.7]} 23. Bb5 {[%clk 0:02:06.4]} 23...
Bd7 {[%clk 0:00:52.7]} 24. Bxd7 {[%clk 0:02:05.2]} 24... Nxd7 {[%clk 0:00:53.6]}
25. b4 {[%clk 0:02:03.8]} 25... axb4 {[%clk 0:00:52]} 26. axb4 {[%clk
0:02:03.2]} 26... Qf4 {[%clk 0:00:51.4]} 27. Qd3 {[%clk 0:01:56.9]} 27... Rxa1
{[%clk 0:00:46.1]} 28. Rxa1 {[%clk 0:01:55]} 28... f5 {[%clk 0:00:45.6]} 29. Re1
{[%clk 0:01:50.4]} 29... Nf6 {[%clk 0:00:43.8]} 30. exf5 {[%clk 0:01:49.5]}
30... e4 {[%clk 0:00:38.7]} 31. Qc4 {[%clk 0:01:33.9]} 31... Qxf5 {[%clk
0:00:22.6]} 32. Bxf6 {[%clk 0:01:13.6]} 32... gxf6 {[%clk 0:00:21.7]} 33. Nd4
{[%clk 0:01:05.8]} 33... Qf4 {[%clk 0:00:22.2]} 34. Re2 {[%clk 0:00:59.5]} 34...
e3 {[%clk 0:00:20.9]} 35. fxe3 {[%clk 0:00:49.8]} 35... Rxe3 {[%clk 0:00:19.9]}
36. Rd2 {[%clk 0:00:34.8]} 36... Re1+ {[%clk 0:00:19.3]} 0-1

[Event "Early-Titled-Tuesday-Blitz-June-18-2024"]
[Site "Chess.com"]
[Date "2024.06.18"]
[Round "4"]
[White "Roland_Garros_2024"]
[Black "Dreamer_01"]
[Result "0-1"]
[WhiteElo "2230"]
[BlackElo "2395"]
[TimeControl "180+1"]
[EndTime "8:40:34 PDT"]
[Termination "Dreamer_01 won by resignation"]

1. e4 {[%clk 0:03:00.9]} 1... e6 {[%clk 0:02:57.4]} 2. d3 {[%clk 0:02:55.5]}
2... d5 {[%clk 0:02:57.9]} 3. Nd2 {[%clk 0:02:55.7]} 3... dxe4 {[%clk
0:02:58.1]} 4. dxe4 {[%clk 0:02:55.7]} 4... c5 {[%clk 0:02:52.6]} 5. Ngf3 {[%clk
0:02:55.4]} 5... Nc6 {[%clk 0:02:52.7]} 6. Qe2 {[%clk 0:02:32.3]} 6... Nf6
{[%clk 0:02:38.8]} 7. Nc4 {[%clk 0:02:26.7]} 7... b5 {[%clk 0:02:31.1]} 8. Nce5
{[%clk 0:02:24.1]} 8... Nxe5 {[%clk 0:02:29.5]} 9. Nxe5 {[%clk 0:02:24]} 9... c4
{[%clk 0:02:27]} 10. Ng4 {[%clk 0:01:43.4]} 10... Bb7 {[%clk 0:02:17.7]} 11. Bg5
{[%clk 0:01:30.3]} 11... Be7 {[%clk 0:02:12.3]} 12. Nxf6+ {[%clk 0:01:20.9]}
12... Bxf6 {[%clk 0:02:11.9]} 13. Bxf6 {[%clk 0:01:19]} 13... Qxf6 {[%clk
0:02:11.9]} 14. c3 {[%clk 0:01:04.8]} 14... O-O {[%clk 0:02:11.1]} 15. g3 {[%clk
0:01:04.6]} 15... Rfd8 {[%clk 0:01:51.5]} 16. Bg2 {[%clk 0:01:03.8]} 16... Rd3
{[%clk 0:01:49.8]} 17. e5 {[%clk 0:00:32]} 17... Qe7 {[%clk 0:01:49.5]} 18. O-O
{[%clk 0:00:26.1]} 18... Bxg2 {[%clk 0:01:44.8]} 19. Kxg2 {[%clk 0:00:27]} 19...
Qb7+ {[%clk 0:01:45.2]} 20. Kg1 {[%clk 0:00:27]} 20... Rad8 {[%clk 0:01:45.8]}
21. a4 {[%clk 0:00:19]} 21... a6 {[%clk 0:01:36.5]} 22. axb5 {[%clk 0:00:18.9]}
22... axb5 {[%clk 0:01:37.4]} 23. Rfd1 {[%clk 0:00:17.9]} 23... Qd5 {[%clk
0:01:34.2]} 24. Rxd3 {[%clk 0:00:17]} 24... cxd3 {[%clk 0:01:35.1]} 25. Qe3
{[%clk 0:00:13]} 25... d2 {[%clk 0:01:32.1]} 26. Rd1 {[%clk 0:00:12.8]} 26... h6
{[%clk 0:01:30.1]} 27. f4 {[%clk 0:00:12.3]} 27... Rd7 {[%clk 0:01:22.8]} 28.
Kf2 {[%clk 0:00:12.4]} 28... h5 {[%clk 0:01:08]} 29. h4 {[%clk 0:00:11.8]} 29...
g6 {[%clk 0:01:05.6]} 30. Qf3 {[%clk 0:00:11.6]} 30... Qb3 {[%clk 0:00:58.8]}
31. Qc6 {[%clk 0:00:09.1]} 31... Qxd1 {[%clk 0:00:53]} 32. Qxd7 {[%clk
0:00:06.4]} 32... Qe1+ {[%clk 0:00:53.6]} 33. Kg2 {[%clk 0:00:05.7]} 33... d1=Q
{[%clk 0:00:54.1]} 34. Qe8+ {[%clk 0:00:05]} 34... Kg7 {[%clk 0:00:53.8]} 35.
Qe7 {[%clk 0:00:04.6]} 35... Qde2+ {[%clk 0:00:52]} 0-1

[Event "Early-Titled-Tuesday-Blitz-June-18-2024"]
[Site "Chess.com"]
[Date "2024.06.18"]
[Round "4"]
[White "falzehope0"]
[Black "Yeritsyaan"]
[Result "0-1"]
[WhiteElo "2446"]
[BlackElo "2679"]
[TimeControl "180+1"]
[EndTime "8:40:35 PDT"]
[Termination "Yeritsyaan won by checkmate"]

1. d4 {[%clk 0:03:00.9]} 1... d5 {[%clk 0:02:58.5]} 2. e3 {[%clk 0:03:01.8]}
2... Nf6 {[%clk 0:02:58.1]} 3. Bd3 {[%clk 0:03:01.5]} 3... g6 {[%clk 0:02:56.8]}
4. f4 {[%clk 0:03:01.4]} 4... Bg7 {[%clk 0:02:56.4]} 5. Nf3 {[%clk 0:03:01.5]}
5... O-O {[%clk 0:02:56.6]} 6. O-O {[%clk 0:03:01.7]} 6... b6 {[%clk 0:02:57.3]}
7. Nbd2 {[%clk 0:03:01]} 7... Ba6 {[%clk 0:02:57.5]} 8. b3 {[%clk 0:02:58]} 8...
Bxd3 {[%clk 0:02:57.3]} 9. cxd3 {[%clk 0:02:58.8]} 9... c5 {[%clk 0:02:56.9]}
10. Bb2 {[%clk 0:02:58.2]} 10... e6 {[%clk 0:02:44.8]} 11. Ne5 {[%clk 0:02:55]}
11... Nfd7 {[%clk 0:02:42.1]} 12. Qg4 {[%clk 0:02:50.9]} 12... Nxe5 {[%clk
0:02:42.2]} 13. fxe5 {[%clk 0:02:39.1]} 13... Nc6 {[%clk 0:02:43.1]} 14. Nf3
{[%clk 0:02:38.1]} 14... cxd4 {[%clk 0:02:37.6]} 15. exd4 {[%clk 0:02:34.2]}
15... Rc8 {[%clk 0:02:34.8]} 16. Ba3 {[%clk 0:02:30]} 16... Ne7 {[%clk
0:02:20.5]} 17. Rf2 {[%clk 0:02:20.3]} 17... Rc3 {[%clk 0:02:10.1]} 18. Rd1
{[%clk 0:02:12.3]} 18... h6 {[%clk 0:01:57.2]} 19. Bb4 {[%clk 0:01:58.2]} 19...
Rc6 {[%clk 0:01:56.8]} 20. Rdf1 {[%clk 0:01:54.5]} 20... Re8 {[%clk 0:01:50.1]}
21. Nh4 {[%clk 0:01:46.9]} 21... Nf5 {[%clk 0:01:50.2]} 22. Nxg6 {[%clk
0:01:08.9]} 22... fxg6 {[%clk 0:01:41.8]} 23. Qxg6 {[%clk 0:01:08.1]} 23... Rc7
{[%clk 0:01:12.9]} 24. g4 {[%clk 0:01:03.2]} 24... Nh4 {[%clk 0:01:04.5]} 25.
Qh5 {[%clk 0:00:41.8]} 25... Kh7 {[%clk 0:00:54.7]} 26. Kh1 {[%clk 0:00:28.2]}
26... Rg8 {[%clk 0:00:51.3]} 27. Rf7 {[%clk 0:00:12.3]} 27... Rxf7 {[%clk
0:00:50.9]} 28. Qxf7 {[%clk 0:00:12]} 28... Qe8 {[%clk 0:00:45.2]} 29. Qxa7
{[%clk 0:00:11.6]} 29... Qg6 {[%clk 0:00:44.9]} 30. Qd7 {[%clk 0:00:05.1]} 30...
Qxg4 {[%clk 0:00:41.8]} 31. Bd2 {[%clk 0:00:02.4]} 31... Qg2# {[%clk 0:00:40.4]}
0-1

[Event "Early-Titled-Tuesday-Blitz-June-18-2024"]
[Site "Chess.com"]
[Date "2024.06.18"]
[Round "4"]
[White "Wizard_97"]
[Black "esskeettit"]
[Result "1-0"]
[WhiteElo "2728"]
[BlackElo "2504"]
[TimeControl "180+1"]
[EndTime "8:40:35 PDT"]
[Termination "Wizard_97 won by resignation"]

1. e4 {[%clk 0:03:00.9]} 1... c5 {[%clk 0:02:59.8]} 2. Nf3 {[%clk 0:03:00.6]}
2... Nc6 {[%clk 0:03:00.1]} 3. d4 {[%clk 0:03:00.9]} 3... cxd4 {[%clk 0:03:01]}
4. Nxd4 {[%clk 0:03:01.4]} 4... g6 {[%clk 0:03:01.5]} 5. c4 {[%clk 0:03:01.1]}
5... Nf6 {[%clk 0:03:01.4]} 6. Nc3 {[%clk 0:03:00.6]} 6... d6 {[%clk 0:03:01.7]}
7. Be2 {[%clk 0:02:59.2]} 7... Nxd4 {[%clk 0:03:02.2]} 8. Qxd4 {[%clk
0:02:58.8]} 8... Bg7 {[%clk 0:03:02.7]} 9. Be3 {[%clk 0:02:57.6]} 9... O-O
{[%clk 0:03:02.5]} 10. Qd2 {[%clk 0:02:58.2]} 10... Qa5 {[%clk 0:02:46.6]} 11.
O-O {[%clk 0:02:57.5]} 11... Be6 {[%clk 0:02:47.1]} 12. Rac1 {[%clk 0:02:55.9]}
12... Rfc8 {[%clk 0:02:46.1]} 13. b3 {[%clk 0:02:53.9]} 13... a6 {[%clk
0:02:26.5]} 14. f4 {[%clk 0:02:51.4]} 14... Rd8 {[%clk 0:02:04.8]} 15. f5 {[%clk
0:02:37.9]} 15... gxf5 {[%clk 0:01:16.3]} 16. exf5 {[%clk 0:02:38.8]} 16... Bxf5
{[%clk 0:01:00.6]} 17. b4 {[%clk 0:02:23.1]} 17... Qe5 {[%clk 0:01:00.4]} 18.
Bd4 {[%clk 0:02:19.4]} 18... Qe6 {[%clk 0:00:29]} 19. Bf3 {[%clk 0:01:52.4]}
19... Rab8 {[%clk 0:00:16.9]} 20. Rce1 {[%clk 0:01:48.7]} 20... Qxc4 {[%clk
0:00:16.9]} 21. Nd5 {[%clk 0:01:30.1]} 21... Nxd5 {[%clk 0:00:15.8]} 22. Bxg7
{[%clk 0:01:29.6]} 22... Kxg7 {[%clk 0:00:04.8]} 23. Bxd5 {[%clk 0:01:28.6]}
23... Qd3 {[%clk 0:00:04.4]} 24. Qg5+ {[%clk 0:00:34.4]} 24... Bg6 {[%clk
0:00:03.9]} 25. Rxe7 {[%clk 0:00:32.6]} 25... Kh8 {[%clk 0:00:04.3]} 26. Qf6+
{[%clk 0:00:31.9]} 26... Kg8 {[%clk 0:00:03.7]} 27. Bxf7+ {[%clk 0:00:32.5]} 1-0